fUSD/lending_fUSD_20250907
["ID","MTS","AMOUNT","RATE_DAILY","PERIOD"]
[383955906,1757207441837,-500.0,0.0003081,2]
[383955907,1757207441846,-250.0,0.0003081,2]
[383955908,1757207441856,-250.0,0.0003081,2]
[383955909,1757207441866,-250.0,0.0003081,2]
[383955910,1757207441877,-250.0,0.0003081,2]
[383955911,1757207441886,-250.0,0.0003081,2]
[383955912,1757207441895,-250.0,0.0003081,2]
[383955913,1757207441905,-250.0,0.0003081,2]
[383955914,1757207441914,-250.0,0.0003081,2]
[383955915,1757207441923,-250.0,0.0003081,2]
[383955916,1757207441932,-250.0,0.0003081,2]
[383955917,1757207441942,-250.0,0.0003081,2]
[383955918,1757207441951,-250.0,0.0003081,2]
[383955919,1757207441961,-250.0,0.0003081,2]
[383955920,1757207441971,-250.0,0.0003081,2]
[383955921,1757207441980,-250.0,0.0003081,2]
[383955922,1757207441989,-250.0,0.0003081,2]
[383955923,1757207441999,-201.93286099,0.0003081,2]
[383955924,1757207442010,-250.0,0.0003081,2]
[383955925,1757207442019,-250.0,0.0003081,2]
[383955926,1757207442029,-250.0,0.0003081,2]
[383955927,1757207442038,-250.0,0.0003081,2]
[383955928,1757207442049,-250.0,0.0003081,2]
[383955929,1757207442058,-250.0,0.0003081,2]
[383955930,1757207442068,-250.0,0.0003081,2]
[383955931,1757207442078,-250.0,0.0003081,2]
[383955932,1757207442087,-250.0,0.0003081,2]
[383955933,1757207442097,-250.0,0.0003081,2]
[383955934,1757207442106,-250.0,0.0003081,2]
[383955935,1757207442115,-250.0,0.0003081,2]
[383955936,1757207442125,-250.0,0.0003081,2]
[383955937,1757207442134,-250.0,0.0003081,2]
[383955938,1757207442143,-250.0,0.0003081,2]
[383955939,1757207442153,-250.0,0.0003081,2]
[383955940,1757207442163,-250.0,0.0003081,2]
[383955941,1757207442172,-250.0,0.0003081,2]
[383955942,1757207442183,-250.0,0.0003081,2]
[383955943,1757207442193,-250.0,0.0003081,2]
[383955944,1757207442204,-250.0,0.0003081,2]
[383955945,1757207442215,-250.0,0.0003081,2]
[383955946,1757207442225,-250.0,0.0003081,2]
[383955947,1757207442234,-250.0,0.0003081,2]
[383955948,1757207442244,-156.587,0.00030865,2]
[383955949,1757207442253,-152.0,0.00030888,4]
[383955950,1757207442263,-8353.13549866,0.0003089,2]
[383955951,1757207442273,-14412.13838654,0.000309,2]
[383955952,1757207442282,-767.61144847,0.00030906,2]
[383955953,1757207442292,-162.380719,0.0003092,2]
[383955954,1757207442301,-168.3888056,0.00030975,2]
[383955955,1757207442310,-50118.812992,0.0003099,2]
[383955956,1757207442320,-151.0,0.0003099,7]
[383955957,1757207442330,-151.0,0.00030997,7]
[383955958,1757207442340,-457.12326099,0.00030999,2]
[383955959,1757207442349,-179.30139133,0.00030999,2]
[383955960,1757207442359,-300.0,0.00030999,10]
[383955961,1757207442369,-300.0,0.00030999,10]
[383955962,1757207442382,-5046.03726012,0.00031,2]
[383955963,1757207442391,-2000.0,0.00031,120]
[383955964,1757207442400,-2000.0,0.00031,120]
[383955965,1757207442411,-180.985,0.00031,30]
[383955966,1757207442421,-1695.634,0.00031,120]
[383955967,1757207442431,-10000.0,0.00031,30]
[383955968,1757207442441,-10000.0,0.00031,30]
[383955969,1757207442451,-10000.0,0.00031,30]
[383955970,1757207442461,-10000.0,0.00031,30]
[383955971,1757207442470,-10000.0,0.00031,30]
[383955972,1757207442480,-10000.0,0.00031,30]
[383955973,1757207442489,-151.0,0.00031,7]
[383955974,1757207442499,-151.0,0.00031,7]
[383955975,1757207442509,-151.0,0.00031,7]
[383955976,1757207442519,-151.0,0.00031,7]
[383955977,1757207442528,-151.0,0.00031,7]
[383955978,1757207442539,-152.35934393,0.00031,2]
[383955979,1757207442549,-151.0,0.00031,2]
[383955980,1757207442558,-151.0,0.00031,7]
[383955981,1757207442569,-151.0,0.00031,7]
[383955982,1757207442578,-151.0,0.00031,7]
[383955983,1757207442589,-151.0,0.00031,7]
[383955984,1757207442599,-292.71421,0.00031,7]
[383955985,1757207442609,-292.71421,0.00031,7]
[383955986,1757207442619,-292.71421,0.00031,7]
[383955987,1757207442630,-292.71421,0.00031,7]
[383955988,1757207442641,-151.0,0.00031,7]
[383955989,1757207442651,-151.0,0.00031,7]
[383955990,1757207442661,-151.0,0.00031,7]
[383955991,1757207442670,-151.0,0.00031,7]
[383955992,1757207442680,-3959.00249,0.00031,2]
[383955993,1757207442930,-151.0,0.00031,7]
[383955995,1757207442940,-151.0,0.00031,7]
[383955997,1757207442950,-151.0,0.00031,7]
[383955998,1757207442959,-151.0,0.00031,7]
[383955999,1757207442968,-151.0,0.00031,7]
[383956000,1757207442977,-151.0,0.00031,7]
[383956001,1757207442985,-151.0,0.00031,7]
[383956002,1757207442994,-14412.13838645,0.00031011,2]
[383956003,1757207443003,-8702.47840548,0.00031011,2]
[383956004,1757207443012,-170.17006559,0.0003103,2]
[383956005,1757207443021,-8353.13549866,0.00031031,2]
[383956006,1757207443031,-933.02,0.00031041,2]
[383956007,1757207443040,-529.76,0.00031041,2]
[383956008,1757207443050,-802.0,0.00031041,2]
[383956009,1757207443060,-277.72,0.0003112,28]
[383956010,1757207443073,-14412.13838645,0.00031122,2]
[383956011,1757207443081,-168.0,0.00031184,2]
[383956012,1757207443091,-600.0,0.00031215,2]
[383956013,1757207443100,-8353.13549866,0.00031223,2]
[383956014,1757207443109,-171.0,0.00031228,2]
[383956015,1757207443118,-151.0,0.00031233,7]
[383956016,1757207443129,-151.0,0.00031233,7]
[383956018,1757207443139,-14412.13838645,0.00031233,2]
[383956020,1757207443149,-8702.47840548,0.00031233,2]
[383956022,1757207443158,-1541.0,0.00031234,2]
[383956023,1757207443168,-8353.13549866,0.00031303,2]
[383956024,1757207443177,-151.0,0.00031304,7]
[383956025,1757207443186,-151.0,0.00031304,7]
[383956026,1757207443195,-151.0,0.00031304,7]
[383956027,1757207443205,-200.0,0.00031313,2]
[383956028,1757207443215,-200.0,0.00031313,2]
[383956029,1757207443224,-200.0,0.00031313,2]
[383956030,1757207443235,-200.0,0.00031313,2]
[383956031,1757207443244,-200.0,0.00031313,2]
[383956032,1757207443253,-200.0,0.00031313,2]
[383956033,1757207443262,-200.0,0.00031313,2]
[383956034,1757207443272,-200.0,0.00031313,2]
[383956035,1757207443282,-200.0,0.00031313,2]
[383956036,1757207443291,-151.0,0.00031313,7]
[383956037,1757207443301,-200.0,0.00031313,2]
[383956038,1757207443311,-200.0,0.00031313,2]
[383956039,1757207443320,-200.0,0.00031313,2]
[383956040,1757207443330,-200.0,0.00031313,2]
[383956041,1757207443339,-200.0,0.00031313,2]
[383956042,1757207443348,-200.0,0.00031313,2]
[383956043,1757207443357,-200.0,0.00031313,2]
[383956044,1757207443367,-200.0,0.00031313,2]
[383956045,1757207443377,-200.0,0.00031313,2]
[383956046,1757207443387,-200.0,0.00031313,2]
[383956047,1757207443396,-200.0,0.00031313,2]
[383956048,1757207443406,-200.0,0.00031313,2]
[383956049,1757207443416,-200.0,0.00031313,2]
[383956050,1757207443425,-200.0,0.00031313,2]
[383956051,1757207443435,-200.0,0.00031313,2]
[383956052,1757207443445,-200.0,0.00031313,2]
[383956053,1757207443454,-200.0,0.00031313,2]
[383956054,1757207443463,-200.0,0.00031313,2]
[383956055,1757207443473,-200.0,0.00031313,2]
[383956056,1757207443482,-200.0,0.00031313,2]
[383956057,1757207443492,-200.0,0.00031313,2]
[383956058,1757207443501,-200.0,0.00031313,2]
[383956059,1757207443511,-200.0,0.00031313,2]
[383956060,1757207443520,-244.07718,0.00031313,2]
[383956061,1757207443530,-151.0,0.00031313,7]
[383956062,1757207443539,-151.0,0.00031313,7]
[383956063,1757207443549,-151.0,0.00031313,7]
[383956064,1757207443559,-151.0,0.00031313,7]
[383956065,1757207443568,-292.71421,0.00031313,7]
[383956066,1757207443578,-292.71421,0.00031313,7]
[383956067,1757207443587,-292.71421,0.00031313,7]
[383956068,1757207443597,-292.71421,0.00031313,7]
[383956069,1757207443606,-151.0,0.00031313,7]
[383956070,1757207443615,-151.0,0.00031313,7]
[383956071,1757207443625,-8353.13549866,0.00031334,2]
[383956072,1757207443635,-14412.13838645,0.00031344,2]
[383956073,1757207443645,-151.0,0.00031358,2]
[383956074,1757207443655,-151.0,0.00031358,2]
[383956075,1757207443664,-151.0,0.00031358,2]
[383956076,1757207443675,-151.0,0.00031358,2]
[383956077,1757207443685,-168.0,0.00031368,2]
[383956078,1757207443695,-200.0,0.000314,11]
[383956079,1757207443706,-171.0,0.00031445,7]
[383956080,1757207443716,-8353.13549866,0.00031446,2]
[383956081,1757207443728,-14412.13838645,0.00031456,2]
[383956082,1757207443738,-8702.47840548,0.00031456,2]
[383956083,1757207443748,-500.0,0.000315,11]
[383956084,1757207443758,-186.578004,0.00031509,7]
[383956085,1757207443768,-7483.8804477,0.00031527,2]
[383956087,1757207443779,-166.31336434,0.00031538,5]
[383956088,1757207443789,-1768.0817302,0.00031546,2]
[383956089,1757207443799,-151.0,0.00031546,7]
[383956090,1757207443808,-151.0,0.00031546,7]
[383956091,1757207443818,-151.0,0.00031546,7]
[383956092,1757207443828,-8353.13549866,0.00031557,2]
[383956093,1757207443838,-14412.13838645,0.00031567,2]
[383956094,1757207443847,-700.0,0.000316,11]
[383956095,1757207443857,-151.0,0.00031607,7]
[383956096,1757207443867,-151.0,0.00031607,7]
[383956097,1757207443878,-8353.13549866,0.00031668,2]
[383956098,1757207443888,-151.0,0.00031675,7]
[383956099,1757207443899,-14412.13838645,0.00031678,2]
[383956100,1757207443910,-8702.47840548,0.00031678,2]
[383956101,1757207443920,-151.0,0.0003169,7]
[383956102,1757207443931,-292.71421,0.0003169,7]
[383956103,1757207443941,-292.71421,0.0003169,7]
[383956104,1757207443951,-292.71421,0.0003169,7]
[383956105,1757207443961,-292.71421,0.0003169,7]
[383956106,1757207443970,-16706.2709973,0.0003169,2]
[383956107,1757207443980,-151.0,0.000317,7]
[383956108,1757207443989,-151.0,0.000317,7]
[383956109,1757207443998,-151.0,0.000317,7]
[383956110,1757207444008,-151.0,0.000317,7]
[383956111,1757207444018,-213.69581,0.000317,7]
[383956112,1757207444028,-151.0,0.000317,5]
[383956113,1757207444037,-151.0,0.000317,7]
[383956114,1757207444047,-151.0,0.000317,7]
[383956115,1757207444056,-151.0,0.000317,7]
[383956116,1757207444066,-151.0,0.000317,7]
[383956117,1757207444075,-151.0,0.000317,7]
[383956118,1757207444085,-1000.0,0.000317,11]
[383956119,1757207444095,-212.67823062,0.000317,3]
[383956120,1757207444104,-514.85095374,0.000317,3]
[383956121,1757207444114,-25126.314194,0.000317,3]
[383956122,1757207444124,-675.0,0.00031723,2]
[383956123,1757207444135,-299.69,0.00031724,30]
[383956124,1757207444144,-207.14,0.00031724,30]
[383956125,1757207444153,-398.47,0.00031735,2]
[383956126,1757207444163,-166.66,0.00031777,2]
[383956127,1757207444173,-8353.13549866,0.00031779,2]
[383956128,1757207444182,-14412.13838645,0.00031789,2]
[383956129,1757207444191,-1200.0,0.000318,11]
[383956130,1757207444201,-152.0,0.00031837,5]
[383956131,1757207444210,-5563.60441104,0.0003187,2]
[383956132,1757207444220,-335.86037529,0.00031873,5]
[383956133,1757207444229,-2500.0,0.0003188,5]
[383956134,1757207444238,-151.0,0.0003188,7]
[383956135,1757207444247,-151.0,0.0003188,7]
[383956136,1757207444257,-161.272246,0.0003188,3]
[383956137,1757207444266,-8353.13549866,0.0003188,2]
[383956138,1757207444275,-5563.60441104,0.0003188,2]
[383956139,1757207444285,-151.0,0.00031882,7]
[383956140,1757207444294,-151.0,0.00031882,7]
[383956141,1757207444304,-151.0,0.00031882,7]
[383956142,1757207444313,-278.305176,0.00031882,7]
[383956143,1757207444322,-292.71421,0.00031882,7]
[383956144,1757207444332,-292.71421,0.00031882,7]
[383956145,1757207444341,-292.71421,0.00031882,7]
[383956146,1757207444350,-292.71422,0.00031882,7]
[383956147,1757207444360,-300.0,0.00031889,10]
[383956148,1757207444369,-207.37719863,0.00031889,10]
[383956149,1757207444379,-151.0,0.0003189,7]
[383956150,1757207444388,-151.0,0.0003189,7]
[383956151,1757207444398,-194.788442,0.0003189,7]
[383956152,1757207444407,-16706.2709973,0.0003189,2]
[383956153,1757207444416,-22254.4176442,0.0003189,2]
[383956154,1757207444426,-1250.0,0.0003189,3]
[383956155,1757207444436,-1250.0,0.0003189,3]
[383956156,1757207444446,-151.0,0.00031896,7]
[383956157,1757207444456,-151.0,0.00031896,7]
[383956158,1757207444466,-151.0,0.00031896,7]
[383956159,1757207444475,-257.0,0.00031896,5]
[383956160,1757207444484,-151.0,0.00031897,7]
[383956161,1757207444494,-151.0,0.00031897,7]
[383956162,1757207444503,-300.0,0.00031899,10]
[383956163,1757207444512,-300.0,0.00031899,10]
[383956164,1757207444522,-151.0,0.00031899,7]
[383956165,1757207444531,-151.0,0.00031899,7]
[383956166,1757207444541,-151.0,0.00031899,7]
[383956167,1757207444550,-723.85648852,0.000319,2]
[383956168,1757207444560,-157.55267942,0.000319,2]
[383956169,1757207444571,-151.0,0.000319,7]
[383956170,1757207444580,-151.0,0.000319,7]
[383956171,1757207444590,-151.0,0.000319,7]
[383956172,1757207444599,-1591.0183,0.000319,10]
[383956173,1757207444609,-14412.13838645,0.000319,2]
[383956174,1757207444619,-200.0,0.000319,11]
[383956175,1757207444629,-255.1030362,0.000319,2]
[383956176,1757207444639,-8702.47840548,0.000319,2]
[383956177,1757207444649,-2175.65800838,0.000319,2]
[383956178,1757207444658,-9698.57871394,0.000319,2]
[383956179,1757207444668,-6772.97876169,0.000319,2]
[383956180,1757207444678,-202.26221386,0.000319,2]
[383956181,1757207444687,-151.0,0.00031906,2]
[383956182,1757207444697,-151.0,0.00031906,2]
[383956183,1757207444706,-151.0,0.00031906,2]
[383956184,1757207444716,-8353.13549866,0.00031928,2]
[383956185,1757207444726,-500.55054868,0.00031938,5]
[383956186,1757207444736,-8353.13549866,0.00031952,2]
[383956187,1757207444745,-11127.2088221,0.00031952,2]
[383956188,1757207444756,-5563.60441104,0.00031958,2]
[383956189,1757207444765,-151.0,0.00031959,7]
[383956190,1757207444775,-8353.13549866,0.0003196,2]
[383956191,1757207444786,-666.0,0.00031962,10]
[383956192,1757207444796,-666.0,0.00031962,10]
[383956193,1757207444805,-300.0,0.00031962,10]
[383956194,1757207444816,-300.0,0.00031962,10]
[383956195,1757207444826,-25059.406496,0.00031963,2]
[383956196,1757207444836,-33381.6264662,0.00031963,2]
[383956197,1757207444846,-8353.13549866,0.00031965,2]
[383956198,1757207444856,-150.0,0.00031968,2]
[383956199,1757207444866,-300.0,0.00031969,10]
[383956200,1757207444875,-275.42534859,0.0003197,2]
[383956201,1757207444885,-151.77,0.0003197,2]
[383956202,1757207444895,-1300.9033999,0.0003197,2]
[383956203,1757207444905,-16706.2709973,0.0003197,2]
[383956204,1757207444915,-55636.0441104,0.0003197,2]
[383956205,1757207444924,-666.0,0.00031972,10]
[383956206,1757207444934,-666.0,0.00031972,10]
[383956207,1757207444944,-300.0,0.00031972,10]
[383956208,1757207444953,-300.0,0.00031972,10]
[383956209,1757207444964,-37265.0,0.00031973,2]
[383956210,1757207444974,-20733.0,0.00031973,2]
[383956211,1757207444984,-160.17465908,0.00031973,5]
[383956212,1757207444993,-506.92815019,0.00031973,5]
[383956213,1757207445004,-500.0,0.00031973,5]
[383956214,1757207445013,-500.0,0.00031973,5]
[383956215,1757207445023,-500.8517307,0.00031973,5]
[383956216,1757207445032,-500.0,0.00031973,5]
[383956217,1757207445042,-536.77201311,0.00031973,5]
[383956218,1757207445052,-504.74452984,0.00031973,5]
[383956219,1757207445063,-500.0,0.00031973,5]
[383956220,1757207445075,-500.0,0.00031973,5]
[383956221,1757207445086,-269.29286367,0.00031973,5]
[383956222,1757207445095,-500.0,0.00031973,5]
[383956223,1757207445104,-151.0,0.00031973,7]
[383956224,1757207445114,-151.0,0.00031973,7]
[383956225,1757207445123,-351.03230703,0.00031973,2]
[383956226,1757207445134,-426.63926547,0.00031975,2]
[383956227,1757207445144,-151.0,0.00031977,7]
[383956228,1757207445153,-502.2462239,0.00031978,2]
[383956229,1757207445163,-5563.60441104,0.00031979,2]
[383956230,1757207445172,-666.0,0.00031979,10]
[383956231,1757207445181,-300.0,0.00031979,10]
[383956232,1757207445190,-300.0,0.00031979,10]
[383956233,1757207445199,-151.0,0.0003198,7]
[383956234,1757207445209,-151.0,0.0003198,7]
[383956235,1757207445219,-151.0,0.0003198,7]
[383956236,1757207445229,-151.0,0.0003198,7]
[383956237,1757207445239,-151.0,0.0003198,7]
[383956238,1757207445248,-151.0,0.0003198,7]
[383956239,1757207445257,-289.4472,0.0003198,7]
[383956240,1757207445266,-150.0,0.0003198,120]
[383956241,1757207445275,-577.85318234,0.0003198,2]
[383956242,1757207445285,-38945.2308773,0.0003198,2]
[383956243,1757207445294,-653.46014078,0.00031983,2]
[383956244,1757207445304,-729.06709921,0.00031985,2]
[383956245,1757207445314,-804.67405765,0.00031988,2]
[383956246,1757207445327,-300.0,0.00031989,10]
[383956247,1757207445337,-300.0,0.00031989,10]
[383956248,1757207445346,-666.0,0.00031989,10]
[383956249,1757207445356,-510.84220586,0.00031989,10]
[383956250,1757207445366,-300.0,0.00031989,10]
[383956251,1757207445378,-300.0,0.00031989,10]
[383956252,1757207445387,-151.0,0.0003199,7]
[383956253,1757207445397,-151.0,0.0003199,7]
[383956254,1757207445406,-151.0,0.0003199,7]
[383956255,1757207445416,-151.0,0.0003199,7]
[383956256,1757207445425,-151.0,0.0003199,7]
[383956257,1757207445435,-880.28101608,0.0003199,2]
[383956258,1757207445447,-77890.4617546,0.0003199,2]
[383956259,1757207445457,-1300.9033999,0.0003199,2]
[383956260,1757207445466,-1300.9033999,0.0003199,2]
[383956261,1757207445475,-151.0,0.00031997,7]
[383956262,1757207445485,-195.78687301,0.00031999,3]
[383956263,1757207445495,-300.0,0.00031999,10]
[383956264,1757207445506,-300.0,0.00031999,10]
[383956265,1757207445516,-666.0,0.00031999,10]
[383956266,1757207445526,-300.0,0.00031999,10]
[383956267,1757207445536,-150.0,0.00031999,20]
[383956268,1757207445545,-150.0,0.00031999,2]
[383956269,1757207445555,-150.0,0.00031999,2]
[383956270,1757207445566,-815997.92409784,0.00032,2]
[383956271,1757207445598,-1038.34136972,0.00032,2]
[383956272,1757207445611,-1436.26849657,0.00032,2]
[383956273,1757207445623,-1916.42975355,0.00032,2]
[383956274,1757207445656,-35377.1202,0.00032,2]
[383956275,1757207445678,-16149.74780607,0.00032,2]
[383956282,1757207447146,-1431.65975471,0.00032,2]
[383956283,1757207447162,-816.36668014,0.00032,2]
[383956284,1757207447219,-1767.7686502,0.00032,2]
[383956285,1757207447342,-2445.09886678,0.00032,2]
[383956286,1757207447354,-532.03,0.00032,2]
[383956288,1757207447487,-450.0,0.00032,2]
[383956289,1757207449236,-1837.40604049,0.00032,2]
[383956290,1757207449270,-152.13942929,0.00031623,4]
[383956291,1757207449286,-2071.86057071,0.00032,2]
[383956292,1757207449311,-1068.65614488,0.00032,2]
[383956293,1757207449343,-1143.97892178,0.00032,2]
[383956294,1757207449363,-1001.20674812,0.00032,2]
[383956295,1757207493497,150.0,0.000191,4]
[383956300,1757208120879,170.68,0.00015161,2]
[383956304,1757208337176,1800.0,9e-05,2]
[383956321,1757208632401,-250.0,0.00019999,2]
[383956322,1757208632412,-99.1058958,0.00019999,2]
[383956323,1757208632421,-159.32471161,0.00019999,2]
[383956324,1757208632431,-8.13679193,0.0002,2]
[383956325,1757208632443,-263.17499994,0.0002,2]
[383956326,1757208632476,-1845.98658953,0.0002,2]
[383956327,1757208632487,-410.92014309,0.0002,2]
[383956328,1757208632608,-492.3323032,0.0002,2]
[383956329,1757208632620,-1348.70578659,0.0002,2]
[383956337,1757208638621,-2692.09046821,0.0002,2]
[383956372,1757208640444,-1613.65853023,0.0002,2]
[383956373,1757208640546,-200591.67669918,0.0002,2]
[383956374,1757208640556,-4113.44044677,0.00022,2]
[383956375,1757208640566,-150.0,0.00022,2]
[383956376,1757208640576,-170.68,0.00022742,2]
[383956377,1757208640585,-250.0,0.000242,2]
[383956378,1757208640595,-309.31,0.00024636,2]
[383956379,1757208640604,-161.11,0.00024636,2]
[383956380,1757208640619,-1079.11327543,0.000249,2]
[383956381,1757208640628,-177.12,0.00025842,2]
[383956382,1757208640638,-151.41,0.00026003,2]
[383956383,1757208640647,-309.31,0.00026295,7]
[383956384,1757208640658,-161.11,0.00026295,7]
[383956385,1757208640668,-1079.11327527,0.00027827,8]
[383956386,1757208640677,-157.8,0.0002786,2]
[383956387,1757208640688,-309.31,0.00027954,7]
[383956388,1757208640698,-161.11,0.00027954,7]
[383956389,1757208640707,-157.8,0.00028811,3]
[383956390,1757208640717,-1000.0,0.00029093,2]
[383956391,1757208640726,-944.51,0.00029199,2]
[383956392,1757208640736,-309.31,0.00029612,30]
[383956393,1757208640746,-161.11,0.00029612,30]
[383956394,1757208640755,-157.8,0.00029762,3]
[383956395,1757208640764,-470.72,0.00030082,2]
[383956396,1757208640774,-160.0,0.00030107,7]
[383956397,1757208640783,-250.0,0.00030107,2]
[383956398,1757208640793,-20705.27965148,0.0003013,2]
[383956400,1757208640802,-3000.0,0.00030241,2]
[383956401,1757208640811,-201.93286099,0.00030241,2]
[383956402,1757208640820,-151.0,0.00030241,2]
[383956403,1757208640830,-267.46074303,0.00030241,2]
[383956404,1757208640839,-944.51,0.00030293,2]
[383956405,1757208640849,-151.0,0.00030299,7]
[383956406,1757208640859,-1687.26,0.00030312,2]
[383956407,1757208640869,-170.68,0.00030322,2]
[383956408,1757208640879,-159.38,0.00030327,2]
[383956409,1757208640888,-1614.37719771,0.00030333,2]
[383956410,1757208640899,-2624.3,0.00030382,120]
[383956411,1757208640909,-470.72,0.00030441,2]
[383956412,1757208640919,-1425.0,0.0003052,2]
[383956413,1757208640928,-150.0,0.00030564,7]
[383956414,1757208640938,-256.27,0.00030574,30]
[383956415,1757208640948,-162.28,0.00030597,2]
[383956416,1757208640957,-157.8,0.00030713,4]
[383956417,1757208640967,-1079.11327527,0.00030754,14]
[383956418,1757208640978,-165.31,0.00030773,2]
[383956419,1757208640987,-151.0,0.00030789,2]
[383956420,1757208640997,-150.0,0.00030838,7]
[383956421,1757208641007,-14412.13838654,0.00030905,2]
[383956422,1757208641017,-151.0,0.00030955,7]
[383956423,1757208641026,-151.0,0.00030955,7]
[383956424,1757208641036,-300.0,0.00030957,10]
[383956425,1757208641045,-181.74049937,0.00030957,2]
[383956426,1757208641055,-463.2908012,0.00030957,2]
[383956427,1757208641064,-27416.49,0.00030958,8]
[383956428,1757208641075,-27416.49,0.00030958,8]
[383956429,1757208641084,-27416.49,0.00030958,8]
[383956430,1757208641094,-27416.49,0.00030958,8]
[383956431,1757208641104,-27416.49,0.00030958,8]
[383956432,1757208641114,-27416.49,0.00030958,8]
[383956433,1757208641123,-27416.49,0.00030958,8]
[383956434,1757208641133,-27416.49,0.00030958,8]
[383956435,1757208641143,-27416.49,0.00030958,8]
[383956436,1757208641153,-27416.49,0.00030958,8]
[383956437,1757208641163,-27416.49,0.00030958,8]
[383956438,1757208641173,-27416.49,0.00030958,8]
[383956439,1757208641183,-27416.49,0.00030958,8]
[383956440,1757208641193,-27416.49,0.00030958,8]
[383956441,1757208641202,-27416.49,0.00030958,8]
[383956442,1757208641212,-27416.49,0.00030958,8]
[383956443,1757208641221,-27416.49,0.00030958,8]
[383956444,1757208641231,-27416.49,0.00030958,8]
[383956445,1757208641241,-27416.49,0.00030958,8]
[383956446,1757208641251,-27416.49,0.00030958,8]
[383956447,1757208641260,-27416.49,0.00030958,8]
[383956448,1757208641269,-27416.49,0.00030958,8]
[383956449,1757208641279,-27416.49,0.00030958,8]
[383956450,1757208641289,-27416.56235638,0.00030958,8]
[383956451,1757208641299,-151.0,0.00030958,7]
[383956452,1757208641309,-151.0,0.00030958,7]
[383956453,1757208641319,-151.0,0.00030958,7]
[383956454,1757208641329,-151.0,0.00030958,7]
[383956455,1757208641339,-771.23802929,0.00030961,2]
[383956456,1757208641349,-13052.43275964,0.00031,120]
[383956457,1757208641359,-3011.38049103,0.00031,120]
[383956458,1757208641368,-14412.13838645,0.00031016,2]
[383956459,1757208641378,-1425.0,0.00031017,2]
[383956460,1757208641388,-151.0,0.00031019,7]
[383956461,1757208641397,-300.0,0.00031021,10]
[383956462,1757208641406,-322.6107,0.00031022,2]
[383956463,1757208641417,-151.0,0.00031022,2]
[383956464,1757208641427,-151.0,0.00031022,2]
[383956465,1757208641437,-151.0,0.00031022,2]
[383956466,1757208641447,-151.0,0.00031022,2]
[383956467,1757208641456,-160.0,0.00031022,2]
[383956468,1757208641465,-500.0,0.00031022,2]
[383956469,1757208641475,-151.0,0.00031022,2]
[383956470,1757208641485,-695.39793187,0.00031022,2]
[383956471,1757208641494,-151.0,0.00031022,2]
[383956472,1757208641503,-151.0,0.00031022,2]
[383956473,1757208641513,-151.0,0.00031022,2]
[383956474,1757208641521,-151.0,0.00031022,2]
[383956475,1757208641531,-151.0,0.00031022,2]
[383956476,1757208641540,-151.0,0.00031022,2]
[383956477,1757208641549,-151.0,0.00031022,2]
[383956478,1757208641559,-151.0,0.00031022,2]
[383956479,1757208641568,-151.0,0.00031022,2]
[383956480,1757208641578,-151.0,0.00031022,2]
[383956481,1757208641587,-600.0,0.00031022,2]
[383956482,1757208641596,-151.0,0.00031022,2]
[383956483,1757208641608,-151.0,0.00031022,2]